Cogmind - Beta 13 @@@ ROGUE MODE // 2024.04.11 @ 03:04:46 Player: BrainTooSmol Result: Self-destructed Performance ------------- Evolutions (2) 1000 Regions Visited (5) 1000 Robots Destroyed (39) 195 Value Destroyed (1222) 1222 Prototype IDs (0) 0 Alien Tech Used (0) 0 Bonus (57) 57 TOTAL SCORE: 3474 Bonus ------- Follower Combat Kills 57 Cogmind --------- Core Integrity 60/550 Matter 300/300 Energy 100/100 System Corruption 1% Temperature Cool (0) Movement Core (700) Ox13 Location -8/Materials Parts ------- > --- POWER (1) -------- (None) > --- PROPULSION (2) --- (None) > --- UTILITY (6) ------ High-capacity Storage Unit Machine Analyzer Signal Interpreter Hacking Suite > --- WEAPON (2) ------- (None) > --- INVENTORY (20) --- Compact Wheel Flight Unit Flight Unit Flight Unit Large Storage Unit Advanced Weight Redist. System Signal Interpreter ECM Suite Rocket Launcher Peak State ------------ > --- POWER ------------ Light Angular Momentum Engine > --- PROPULSION ------- Carbon-fiber Leg Compact Wheel > --- UTILITY ---------- High-capacity Storage Unit Machine Analyzer Sensor Array Signal Interpreter Hacking Suite > --- WEAPON ----------- Light Assault Rifle Gauss Rifle > --- INVENTORY -------- Flight Unit Flight Unit Flight Unit Large Storage Unit Advanced Weight Redist. System Signal Interpreter ECM Suite Rocket Launcher [Rating: 24] Favorites ----------- Power Light Ion Engine Engine Light Ion Engine Power Core Light Nuclear Core Propulsion Wheel Treads Light Treads Leg Carbon-fiber Leg Wheel Wheel Utility Signal Interpreter Device Sensor Array Storage High-capacity Storage Unit Processor Signal Interpreter Hackware Hacking Suite Weapon Light Assault Rifle Energy Gun Particle Gun Ballistic Gun Light Assault Rifle Ballistic Cannon Battle Cannon Build | -11 -10 -10 -10 -9 -8 ------- Run | Yrd Mat Min Exi Min Mat Slots Evolved 4 | . . . . . 4 Power . | . . . . . . Propulsion . | . . . . . . Utility 4 | . . . . . 4 Weapon . | . . . . . . Parts Attached 40 | 6 13 3 2 . 16 Power 6 | 1 4 . . . 1 Engine 5 | 1 3 . . . 1 Core 1 | . 1 . . . . Reactor . | . . . . . . Propulsion 16 | 2 6 . . . 8 Treads 1 | . . . . . 1 Leg 2 | . . . . . 2 Wheel 13 | 2 6 . . . 5 Hover . | . . . . . . Flight . | . . . . . . Utility 10 | 1 2 . 2 . 5 Device 2 | . . . . . 2 Storage 4 | 1 1 . 2 . . Processor 2 | . 1 . . . 1 Hackware 2 | . . . . . 2 Protection . | . . . . . . Artifact . | . . . . . . Weapon 8 | 2 1 3 . . 2 Energy Gun 2 | . 1 1 . . . Energy Cannon . | . . . . . . Ballistic Gun 4 | 2 . . . . 2 Ballistic Cannon 2 | . . 2 . . . Launcher . | . . . . . . Special Weapon . | . . . . . . Impact Weapon . | . . . . . . Slashing Weapon . | . . . . . . Piercing Weapon . | . . . . . . Special Melee Weapon . | . . . . . . Unidentified Prototypes . | . . . . . . Parts Lost 21 | . 4 1 . . 16 Power 3 | . 1 . . . 2 Propulsion 10 | . 2 . . . 8 Utility 2 | . . . . . 2 Weapon 6 | . 1 1 . . 4 Highest Loss Streak 6 | . 2 1 . . 6 To Critical Strikes 1 | . . . . . 1 Average Slot Usage (%) 90 | . 95 100 100 100 84 Engine 7 | . 10 14 14 14 4 Treads 1 | . . . . . 3 Leg 2 | . . . . . 4 Wheel 15 | . 26 28 28 28 7 Device 6 | . . . . . 11 Storage 11 | . 14 14 14 14 9 Processor 15 | . 11 14 14 14 16 Hackware 5 | . . . . . 10 Energy Gun 2 | . 5 10 . . . Ballistic Gun 10 | . 22 3 . . 8 Ballistic Cannon 9 | . . 14 28 28 9 Naked Turns . | . . . . . . Heaviest Build 55 | 11 18 19 49 49 55 Greatest Support 32 | 32 32 20 20 20 26 Greatest Overweight (x) 18 | . 4 . 2 2 18 Average Overweight (x) 1 | . . . . 2 3 Largest Inventory Capacity 20 | 8 10 10 20 20 20 Average Capacity 15 | 6 8 10 12 20 20 Most Carried 11 | 2 8 10 11 11 11 Average Carried 8 | 1 5 9 10 11 8 Final Capacity 20 | 8 10 10 20 20 20 Final Carried 11 | 2 6 10 11 11 9 Class Distribution -------------------- 49% | Mutant 33% | Scavenger-Skirmisher 8% | Hacker-Skirmisher 7% | Skirmisher Dominant Class ---------------- Mutant | -10/Materials Mutant | -10/Mines Mutant | -10/Exiles Mutant | -9/Mines Scavenger-Skirmisher | -8/Materials Resources | -11 -10 -10 -10 -9 -8 ----------- Run | Yrd Mat Min Exi Min Mat Matter Collected 1380 | 260 283 72 . 65 700 Remotely . | . . . . . . Salvage Created 1219 | . 433 182 . . 604 Parts 78 | . 31 15 . . 32 Haulers Intercepted 1 | . . . . . 1 Recyclers Shooed . | . . . . . . Parts Field Recycled . | . . . . . . Retrieved Matter . | . . . . . . Parts Self-Destructed . | . . . . . . Prevented . | . . . . . . Kills | -11 -10 -10 -10 -9 -8 ------- Run | Yrd Mat Min Exi Min Mat Combat Hostiles Destroyed 28 | . 10 6 . . 12 Guns 17 | . 10 3 . . 4 Cannons 11 | . . 3 . . 8 Classes Destroyed 11 | . 4 1 . . 6 Worker 1 | . . . . . 1 Tunneler 1 | . . . . . 1 Hauler 1 | . . . . . 1 Recycler 1 | . . . . . 1 Operator 1 | . 1 . . . . Watcher 6 | . 3 . . . 3 Swarmer 5 | . 3 2 . . . Grunt 14 | . 7 2 . . 5 Duelist 1 | . . . . . 1 Sentry 7 | . . 2 . . 5 Hunter 1 | . . . . . 1 Best Kill Streak 5 | . 3 2 . . 5 Combat Bots Only 3 | . 3 2 . . 3 Max Kills in Single Turn 2 | . 1 1 . . 2 Gunslinging . | . . . . . . Exploded . | . . . . . . Melee . | . . . . . . Uniques/NPCs Destroyed . | . . . . . . Combat | -11 -10 -10 -10 -9 -8 -------- Run | Yrd Mat Min Exi Min Mat Hostile Shots Fired 246 | . 64 29 . . 153 Missed 68 | . 13 15 . . 40 Damage Taken 2187 | . 551 124 . . 1512 Core 648 | . 135 23 . . 490 Absorbed by Shields . | . . . . . . Core Remaining (%) 68 | 100 . . . 36 . Volleys Fired 159 | . 59 15 . 5 80 Largest 2 | . 2 2 . 2 2 Hottest 104 | . 70 104 . 74 74 Shots Fired 307 | . 111 30 . 10 156 Gun 186 | . 111 22 . . 53 Cannon 121 | . . 8 . 10 103 Launcher . | . . . . . . Special . | . . . . . . Kinetic 276 | . 95 15 . 10 156 Thermal 31 | . 16 15 . . . Explosive . | . . . . . . Electromagnetic . | . . . . . . Robot Hit Streak 19 | . 19 7 . . 15 Robot Miss Streak 6 | . 3 3 . . 6 Penetration Max 1 | . . . . . 1 Secondary Targets 2 | . 2 . . . . Max Gunslinging Chain 1 | . 1 . . . . Shots Hit Robots 188 | . 69 17 . . 102 Core Hits 72 | . 26 8 . . 38 Critical Kills 1 | . 1 . . . . Critical Parts Destroyed 1 | . . . . . 1 Critical Strikes 3 | . 2 . . . 1 Burn 1 | . 1 . . . . Destroy 2 | . 1 . . . 1 Melee Attacks . | . . . . . . Impact . | . . . . . . Slashing . | . . . . . . Piercing . | . . . . . . Sneak Attacks . | . . . . . . Combat Hostiles . | . . . . . . Follow-up Attacks . | . . . . . . Damage Inflicted 2793 | . 743 290 . . 1760 Guns 1553 | . 743 154 . . 656 Cannons 1221 | . . 136 . . 1085 Explosions . | . . . . . . Melee . | . . . . . . Ramming 19 | . . . . . 19 Kinetic 2475 | . 580 154 . . 1741 Thermal 299 | . 163 136 . . . Explosive . | . . . . . . Electromagnetic . | . . . . . . Impact . | . . . . . . Slashing . | . . . . . . Piercing . | . . . . . . Highest Corruption 1 | . . . . . 1 Average Corruption 1 | . . . . . 1 Corruption Purged . | . . . . . . Corruption Blocked . | . . . . . . Effects 13 | . . . . . 13 Message Errors 7 | . . . . . 7 Matter Fused 2 | . . . . . 2 Heat Flow Errors 1 | . . . . . 1 Energy Discharges 1 | . . . . . 1 Data Loss (major) 1 | . . . . . 1 Weapon Failures 1 | . . . . . 1 Overload Shots . | . . . . . . Overflow Damage 7 | . . . . . 7 Projectiles 7 | . . . . . 7 Explosions . | . . . . . . Melee . | . . . . . . Knockbacks 11 | . . . . . 11 Impact . | . . . . . . Kinetic 11 | . . . . . 11 Secondary . | . . . . . . Self-Inflicted Damage 8 | . . . . . 8 Shots . | . . . . . . Rammed 4 | . . . . . 4 Targets Rammed 4 | . . . . . 4 Kicked . | . . . . . . Crushed . | . . . . . . Highest Temperature 246 | . 246 175 . 60 230 Average Temperature 53 | . 63 55 . 31 43 Received Heat Transfer 795 | . 219 27 . . 549 Effects 3 | . 3 . . . . Interference 3 | . 3 . . . . Siege Activations . | . . . . . . Robots Corrupted . | . . . . . . Combat Hostiles . | . . . . . . Parts Fried . | . . . . . . Impact Corruptions . | . . . . . . Robots Melted . | . . . . . . Combat Hostiles . | . . . . . . Parts Melted 1 | . . 1 . . . Heat Transferred 888 | . 555 333 . . . Parts Sabotaged . | . . . . . . Parts Stolen . | . . . . . . Parts Stripped . | . . . . . . Power Chain Reactions . | . . . . . . Alert | -11 -10 -10 -10 -9 -8 ------- Run | Yrd Mat Min Exi Min Mat Peak Influence 196 | . 171 156 . 9 196 Initial 3 | . . . . . 3 Average 53 | . 77 72 . 3 45 Maximum Alert Level . | . . . . . . Low Security (%) 100 | 100 100 100 . 100 100 Level 1 . | . . . . . . Level 2 . | . . . . . . Level 3 . | . . . . . . Level 4 . | . . . . . . Level 5 . | . . . . . . High Security . | . . . . . . Max Security . | . . . . . . Squads Dispatched 5 | . 1 3 . . 1 Investigation 2 | . . 2 . . . Extermination . | . . . . . . Reinforcement 2 | . 1 . . . 1 Assault 1 | . . 1 . . . Garrison . | . . . . . . Intercept . | . . . . . . Searches Triggered . | . . . . . . Construction Impeded . | . . . . . . Haulers Reinforced . | . . . . . . Active Scanning Responses . | . . . . . . Cargo Convoy Interrupts . | . . . . . . Stealth | -11 -10 -10 -10 -9 -8 --------- Run | Yrd Mat Min Exi Min Mat Distress Signals 8 | . 2 . . . 6 Communications Jammed . | . . . . . . Distress Signals . | . . . . . . Times Spotted 66 | . 16 12 . . 38 Peak Tracking Total 14 | . 5 4 . . 14 Tactical Retreats 3 | . . 1 . . 2 Traps | -11 -10 -10 -10 -9 -8 ------- Run | Yrd Mat Min Exi Min Mat Traps Triggered 2 | . 1 . . . 1 Indirectly . | . . . . . . Trap Hack Attempts . | . . . . . . Triggered . | . . . . . . Disarmed . | . . . . . . Reprogrammed . | . . . . . . Reused . | . . . . . . Traps Extracted . | . . . . . . Installed . | . . . . . . Triggered . | . . . . . . Machines | -11 -10 -10 -10 -9 -8 ---------- Run | Yrd Mat Min Exi Min Mat Machines Disabled 3 | . . . . . 3 Max in Single Turn 1 | . . . . . 1 Machines Repaired . | . . . . . . Machines Dismantled . | . . . . . . Machines Sabotaged . | . . . . . . Overloaded Fab Kills . | . . . . . . Hacking | -11 -10 -10 -10 -9 -8 --------- Run | Yrd Mat Min Exi Min Mat Machines Accessed 24 | . 9 2 1 2 10 Terminals 16 | . 7 1 . 1 7 Fabricators . | . . . . . . Repair Stations 1 | . 1 . . . . Recycling Units 3 | . 1 . . . 2 Scanalyzers 1 | . . . . . 1 Garrison Access . | . . . . . . Total Hacks 75 | . 30 5 4 3 33 Successful 47 | . 12 3 4 2 26 Failed 28 | . 18 2 . 1 7 Catastrophic 3 | . 1 . . . 2 Database Lockouts . | . . . . . . Manual 34 | . 19 4 . 2 9 Terminals 51 | . 27 4 . 2 18 Fabricators . | . . . . . . Repair Stations 1 | . 1 . . . . Recycling Units 6 | . 2 . . . 4 Scanalyzers 11 | . . . . . 11 Garrison Access . | . . . . . . Terminal Hacks 26 | . 7 3 4 2 10 Record 4 | . . . 4 . . Part Schematic 4 | . 1 2 . 1 . Robot Analysis 4 | . 1 . . . 3 Open Door 2 | . . 1 . 1 . Scanalyzer Index 1 | . 1 . . . . Alert Level 1 | . 1 . . . . Locate Traps 2 | . 1 . . . 1 Surveillance Status 2 | . . . . . 2 Reinforcement Status 1 | . . . . . 1 Hauler Manifests 3 | . 2 . . . 1 Zone Layout 2 | . . . . . 2 Fabricator Hacks . | . . . . . . Repair Station Hacks . | . . . . . . Recycling Unit Hacks 3 | . 1 . . . 2 Report Inventory 3 | . 1 . . . 2 Scanalyzer 11 | . . . . . 11 Insert Component 5 | . . . . . 5 Analyze 6 | . . . . . 6 Garrison Access Hacks . | . . . . . . Unauthorized Hacks 7 | . 4 . . . 3 Terminals 4 | . 3 . . . 1 Botnet 4 | . 3 . . . 1 Fabricators . | . . . . . . Repair Stations . | . . . . . . Recycling Units 3 | . 1 . . . 2 Monitor 3 | . 1 . . . 2 Scanalyzers . | . . . . . . Garrison Access . | . . . . . . Data Cores Recovered . | . . . . . . Used . | . . . . . . Hacking Detections 18 | . 8 1 . 1 8 Full Trace Events 1 | . . 1 . . . Feedback Events . | . . . . . . Feedback Blocked . | . . . . . . Robot Schematics Acquired . | . . . . . . Robots Built . | . . . . . . Authchips . | . . . . . . Time . | . . . . . . Total Robot Build Rating . | . . . . . . Part Schematics Acquired 8 | . 1 1 . 1 5 Parts Built . | . . . . . . Authchips . | . . . . . . Time . | . . . . . . Total Part Build Rating . | . . . . . . Parts Repaired . | . . . . . . Time . | . . . . . . Parts Recycled . | . . . . . . Recycled Matter . | . . . . . . Retrieved Matter . | . . . . . . Retrieved Components . | . . . . . . Parts Scanalyzed 5 | . . . . . 5 Part Schematics Acquired 5 | . . . . . 5 Parts Damaged . | . . . . . . Bothacking | -11 -10 -10 -10 -9 -8 ------------ Run | Yrd Mat Min Exi Min Mat Used RIF Installer . | . . . . . . Robots Hacked . | . . . . . . Non-combat . | . . . . . . Combat . | . . . . . . Robot Hacks Applied . | . . . . . . Relay Couplers Released . | . . . . . . Fabnet Peak Effective % . | . . . . . . Robots Rewired . | . . . . . . Allies Hacked . | . . . . . . Hacks Repelled . | . . . . . . Allies | -11 -10 -10 -10 -9 -8 -------- Run | Yrd Mat Min Exi Min Mat Total Allies 3 | . . 3 . . . Largest Group 3 | . . 3 1 . . Highest-Rated Group 71 | . . 71 9 . . Highest-Rated Ally 31 | . . 31 9 . . Total Orders . | . . . . . . Ally Attacks 18 | . . 18 . . . Total Damage 251 | . . 251 . . . Kills 3 | . . 3 . . . Allies Corrupted . | . . . . . . Allies Melted 1 | . . 1 . . . Intel | -11 -10 -10 -10 -9 -8 ------- Run | Yrd Mat Min Exi Min Mat Robot Analysis Total 4 | . 1 . . . 3 Derelict Logs Recovered 2 | . . 1 . 1 . Drone Launches . | . . . . . . Drone Recoveries . | . . . . . . Exploration | -11 -10 -10 -10 -9 -8 ------------- Run | Yrd Mat Min Exi Min Mat Turns Passed 4137 | 62 829 576 166 211 2293 Spaces Moved 2575 | 53 678 574 190 177 903 Core 12 | 4 1 . . . 7 Treads 47 | . . . . . 47 Legs 159 | . . . . . 159 Wheels 2357 | 49 677 574 190 177 690 Hover . | . . . . . . Flight . | . . . . . . Fastest Speed 50 | 50 80 80 80 110 105 Average Speed 119 | 96 86 80 86 110 180 Slowest Speed 950 | 100 250 80 110 110 950 Overloaded Moves . | . . . . . . Propulsion Burnouts . | . . . . . . Robots Hopped . | . . . . . . Cave-ins Triggered . | . . . . . . Exploration Rate (%) 55 | 3 95 97 49 33 58 Regions Visited 5 Branch Regions 3 Pre-discovered Areas 2 | . . . 1 1 . Known Exits Taken 4 | . 1 1 1 1 . Unknown Exits Taken 1 | 1 . . . . . Scrap Searched 1 | . . 1 . . . Spaces Dug 5 | . . 1 . 2 2 Terrain Destroyed 16 | . . 2 . 2 12 Melee . | . . . . . . Projectile 16 | . . 2 . 2 12 AOE . | . . . . . . Terrain Rammed . | . . . . . . Walls Destroyed . | . . . . . . Machines Disabled . | . . . . . . Actions | -11 -10 -10 -10 -9 -8 --------- Run | Yrd Mat Min Exi Min Mat Total 3324 | 60 822 661 192 183 1406 Wait 523 | . 59 62 . 2 400 Move 2570 | 52 677 573 189 176 903 Hop . | . . . . . . Pick Up 17 | 2 8 6 . . 1 Fast Attach 22 | 6 4 1 . . 11 Attach 8 | . 4 1 . . 3 Detach . | . . . . . . Swap 10 | . 5 1 2 . 2 Drop 11 | . 6 2 1 . 2 Fire 159 | . 59 15 . 5 80 Melee . | . . . . . . Ram 4 | . . . . . 4 Kick . | . . . . . . Crush . | . . . . . . Escape Stasis . | . . . . . . Rewire . | . . . . . . Trap . | . . . . . . Miscellaneous . | . . . . . . Route ------- -11/Scrapyard -10/Materials (discovered 5 exits: *Mat x3 / *Min x2) -10/Mines (discovered 3 exits: *Mat x2 / *Exi) -10/Exiles -9/Mines -8/Materials (discovered 3 exits: *Fac x2 / *Sto) History --------- Turn | Location | Event 5 | -11/Scrapyard | Discovered new exit (range 15) 63 | -11/Scrapyard | Entered Materials 144 | -10/Materials | Discovered new exit (range 5) 186 | -10/Materials | Discovered new exit (range 8) 285 | -10/Materials | Identified exit to Mines 316 | -10/Materials | Build established: Mutant 456 | -10/Materials | Discovered new exit (range 10) 463 | -10/Materials | Identified exit to Materials 613 | -10/Materials | Discovered exit to Materials (range 16) 748 | -10/Materials | Core integrity fell below 50% 862 | -10/Materials | Discovered exit to Materials (range 7) 892 | -10/Materials | Entered Mines 902 | -10/Mines | Discovered exit to Materials (range 6) 1019 | -10/Mines | A weapon hastily lodged in a ceiling crevice suddenly fell to the ground 1040 | -10/Mines | Deemed a non-threat by the Exiles lab entrance 1040 | -10/Mines | Discovered new exit (range 5) 1115 | -10/Mines | Met a Derelict shopkeep closing up shop 1162 | -10/Mines | Received a Rocket Launcher from a helpful Derelict 1228 | -10/Mines | Learned Materials terminal intel 1230 | -10/Mines | Discovered exit to Materials (range 3) 1231 | -10/Mines | Met a Derelict testing a Signal Generator 1454 | -10/Mines | Identified exit to Exiles 1468 | -10/Mines | Entered Exiles 1468 | -10/Exiles | Accompanied by 1 ally 1490 | -10/Exiles | Met 8R-AWN 1505 | -10/Exiles | Met EX-HEX 1537 | -10/Exiles | Met EX-DEC 1541 | -10/Exiles | Learned location of Zion (-6) 1564 | -10/Exiles | Discovered new exit (range 14) 1633 | -10/Exiles | Identified exit to Mines 1634 | -10/Exiles | Entered Mines 1637 | -9/Mines | Discovered new exit (range 12) 1649 | -9/Mines | Identified exit to Materials 1675 | -9/Mines | Assembled infested the area 1680 | -9/Mines | Assisted by a Guerilla fighting off Assembled 1721 | -9/Mines | Found the Drone Emporium 1845 | -9/Mines | Entered Materials 1845 | -8/Materials | Evolved 4 slots: Utility x4 1846 | -8/Materials | Loaded intel: 12 terminal locations 2070 | -8/Materials | Discovered new exit (range 15) 2330 | -8/Materials | Build established: Skirmisher 2468 | -8/Materials | Identified exit to Factory 2787 | -8/Materials | Discovered new exit (range 13) 2946 | -8/Materials | Build established: Hacker-Skirmisher 3043 | -8/Materials | Lost 6 parts (1p2n1u2w) 3329 | -8/Materials | Build established: Scavenger-Skirmisher 3437 | -8/Materials | Identified exit to Storage 3894 | -8/Materials | Discovered exit to Factory (range 16) 4030 | -8/Materials | Core integrity fell below 50% 4137 | -8/Materials | Core integrity fell below 20% 4138 | -8/Materials | Self-destructed Last Messages --------------- 04111_ ALERT: Hostiles spotted, dispatching reinforcements to Terminal M006. 04116_ Slug penetrates K-01 Serf. 04119_ Gauss Rifle destroyed. 04119_ Lgt. Angular Momentum Engine destroyed. 04119_ Critical hit (Blast). 04121_ Slammed into T-07 Excavator. 04121_ U-05 Engineer builds a Wall. 04124_ Sensor Array destroyed. 04124_ Critical hit (Burn: +37). 04125_ Dropped Carbon-fiber Leg. 04125_ Slammed into G-47 Trooper. 04125_ U-05 Engineer builds a Wall. 04126_ Slammed into G-47 Trooper. 04128_ K-01 Serf destroyed. 04132_ Critical hit (Burn: +37). 04134_ Lgt. Assault Rifle destroyed. 04135_ Critical hit (Burn: +37). 04136_ Com. Wheel destroyed. 04137_ Wheel destroyed. Map ----- +----------------------------------------------------+ | ?###### """ # # #??"""""?????????????????? | | ?#] # """ + + "" #??"""""?????????????????? | | ?# ] # # # S"" #??"""""?????????????????? | | ?# # = # # "" #???"""??????????????????? | | ## [# % # # #????????????????????????? | | + ######## ########????????????????????????? | | # #??????# #???????????????????????????????? | | # #??????# #??????????????"""??????????????? | | # ! #??????# #??????????????"""??????????????? | | #! #??????# #??????????????"""??????????????? | | ######??????# #????????????????????? ????????? | | #???????????# #????????????????????# #???????? | | #???????????# #????????????????????# #???????? | | #???????????# #???????????????????? #???????? | | #???????????# #????????????????????# #???????? | | #????######## #????????????????????# #???????? | | #????# # #????????????????????# #???????? | | #????# # #????????????????????# #??????#? | | #????# """ # #????????????????????# #????? #? | | #????# """ # #????????????????????# ###### #? | | #????# """ # #????????????????????# +? | | #????# """ # #????????????????????# #? | | +###### # ###################### #? | | # """ # % Y #? | | # """ /kg ss Y !* #? | | """ # """ # g @ sg w = ! #? | | """ # """ # ############ #######/### #? | | """ # # #??????????# ## %% [ # #? | | # # #??????"""?# ## % | #H #? | | ###+########## #??????"""?# ## ==! # #? | | #??????"""?# %## ==! # #? | | #??????????# =%=/% ==! # #? | | #??????"""?# ## # #? | | #### #######??????"""?# ## # #? | | #? ????????????"""?# ########### #? | | ## ###????????????????# #?????????? #? | | ###???????????????????# #?????????? #? | | ### #????????????????????? #?????????? ? | | ## #???????????????????? #?????????? ? | | ## #??????????????????? #?????????? ?? | | ## #???????????????????" " ##?????????? ???? | | ## #?????????????????? "G" ??????????????????? | | ## ##????????????????? " ??????????????????? | | ## ##???????????????????? ??????????????????? | | ## ##???????????????????? ??T???????????????? | | ## ##?????????????????????# ??????????????????? | | ## ###########???????????????"""??????????????? | | ## # #???????????????"""??????????????? | | ### # ###?????????????"""??????????????? | | # + ??????????????????????????????? | +----------------------------------------------------+ Best States ------------- Heat Dissipation 31 Energy Generation 18 Energy Capacity 160 Matter Stores 300 Matter Capacity 300 Sight Range 16 Robot Scan Range 14 Terrain Scan Density 10 Evasion (%) 44 Recoil Reduction 1 Offensive Hacking 20 Item Schematics ----------------- Grenade Launcher | -10/Materials | Hacked Sml. Storage Unit | -10/Mines | Hacked VTOL Module | -9/Mines | Hacked ECM Suite | -8/Materials | Scanalyzed Lrg. Storage Unit | -8/Materials | Scanalyzed Adv. Weight Redist. System | -8/Materials | Scanalyzed Rocket Launcher | -8/Materials | Scanalyzed Flight Unit | -8/Materials | Scanalyzed Robot Schematics ------------------ None Fabricated ------------ Nothing Alien Tech Used ----------------- None Achievements -------------- Armchair Analyst Challenges ------------ None Game ------ Seed WardroneWarpPrototype Manual? 0 Play Time 00:47:43 Cumulative 32.0 hours Start 2024.04.10 @ 19:50:35 End 2024.04.11 @ 03:04:46 Sessions 3 Manual Loads 0 Difficulty Rogue Special Mode None Game No. 22 Rogue 22 Adventurer 0 Explorer 0 Win Type - Total 1 Types 1/0/0/0/0/0/0/0/0 Lore% 30 Gallery% 29 Achievement% 31 Wizard Run 0 Options --------- Layout 0 ASCII 0 Keyboard 0 Movement Mouse Keybinds 0 Fullscreen 1 Font 18/SmallcapsGlow Map View 76x50 Zoom Use 0% Tactical HUD 1 Map Filters NONE Filters NONE Steam 1 RUN: 9fce676b-5ec3-4199-a0b3-656fbc9319d5